fUSD/lending_fUSD_20250823
["ID","MTS","AMOUNT","RATE_DAILY","PERIOD"]
[380952267,1755912695703,-629.77,0.0001452,2]
[380952268,1755912695714,-1628.12,0.0001452,2]
[380952269,1755912695723,-250.0,0.0001452,2]
[380952270,1755912695733,-458.74,0.0001452,2]
[380952271,1755912695742,-909.17,0.0001452,2]
[380952272,1755912695751,-757.81,0.0001452,2]
[380952273,1755912695760,-400.0,0.0001452,2]
[380952274,1755912695769,-412.49,0.0001452,2]
[380952275,1755912695779,-400.0,0.0001452,2]
[380952276,1755912695788,-562.56,0.0001452,2]
[380952277,1755912695798,-400.0,0.0001452,2]
[380952278,1755912695808,-901.46,0.0001452,2]
[380952279,1755912695817,-556.37,0.0001452,2]
[380952280,1755912695826,-699.23,0.0001452,2]
[380952281,1755912695836,-554.4,0.0001452,2]
[380952282,1755912695845,-442.39,0.0001452,2]
[380952283,1755912695854,-627.55,0.0001452,2]
[380952284,1755912695864,-400.0,0.0001452,2]
[380952285,1755912695873,-475.41,0.0001452,2]
[380952286,1755912695882,-493.66,0.0001452,2]
[380952287,1755912695892,-151.0,0.0001452,2]
[380952288,1755912695901,-400.0,0.0001452,2]
[380952289,1755912695910,-151.0,0.0001452,2]
[380952290,1755912695919,-400.0,0.0001452,2]
[380952291,1755912695930,-618.33,0.0001452,2]
[380952292,1755912695939,-400.0,0.0001452,2]
[380952293,1755912695948,-220.187109,0.0001452,2]
[380952294,1755912695958,-400.0,0.0001452,2]
[380952295,1755912695968,-1043.76,0.0001452,2]
[380952296,1755912695977,-220.187109,0.0001452,2]
[380952297,1755912695987,-151.0,0.0001452,2]
[380952298,1755912695996,-220.187109,0.0001452,2]
[380952299,1755912696005,-400.0,0.0001452,2]
[380952300,1755912696015,-400.0,0.0001452,2]
[380952301,1755912696024,-220.187109,0.0001452,2]
[380952302,1755912696034,-440.29,0.0001452,2]
[380952303,1755912696043,-415.82,0.0001452,2]
[380952304,1755912696053,-427.73,0.0001452,2]
[380952305,1755912696062,-491.94,0.0001452,2]
[380952306,1755912696071,-501.87,0.0001452,2]
[380952307,1755912696081,-682.29,0.0001452,2]
[380952308,1755912696089,-537.21,0.0001452,2]
[380952309,1755912696099,-400.0,0.0001452,2]
[380952310,1755912696108,-468.97,0.0001452,2]
[380952311,1755912696118,-640.17,0.0001452,2]
[380952312,1755912696128,-577.38,0.0001452,2]
[380952313,1755912696138,-568.93,0.0001452,2]
[380952314,1755912696148,-400.0,0.0001452,2]
[380952315,1755912696158,-400.0,0.0001452,2]
[380952316,1755912696167,-1263.394896,0.0001452,2]
[380952317,1755912696177,-620.18,0.0001452,2]
[380952318,1755912696187,-1263.394896,0.0001452,2]
[380952319,1755912696197,-1005.26,0.0001452,2]
[380952320,1755912696207,-1263.394896,0.0001452,2]
[380952321,1755912696217,-457.02,0.0001452,2]
[380952322,1755912696227,-151.0,0.0001452,2]
[380952323,1755912696237,-933.58,0.0001452,2]
[380952324,1755912696247,-400.0,0.0001452,2]
[380952325,1755912696257,-773.99,0.0001452,2]
[380952326,1755912696267,-400.0,0.0001452,2]
[380952327,1755912696278,-1263.394896,0.0001452,2]
[380952328,1755912696287,-400.0,0.0001452,2]
[380952329,1755912696298,-400.0,0.0001452,2]
[380952330,1755912696308,-269.124975,0.0001452,2]
[380952331,1755912696318,-151.0,0.0001452,2]
[380952332,1755912696328,-400.0,0.0001452,2]
[380952333,1755912696338,-269.124975,0.0001452,2]
[380952334,1755912696347,-610.39,0.0001452,2]
[380952335,1755912696359,-303.152926,0.0001452,2]
[380952336,1755912696372,-400.0,0.0001452,2]
[380952337,1755912696382,-400.0,0.0001452,2]
[380952338,1755912696392,-303.152926,0.0001452,2]
[380952339,1755912696403,-269.124975,0.0001452,2]
[380952340,1755912696414,-407.11,0.0001452,2]
[380952341,1755912696425,-400.0,0.0001452,2]
[380952342,1755912696436,-605.05,0.0001452,2]
[380952343,1755912696446,-453.525844,0.0001452,2]
[380952344,1755912696456,-303.152926,0.0001452,2]
[380952345,1755912696466,-646.19,0.0001452,2]
[380952346,1755912696476,-400.0,0.0001452,2]
[380952347,1755912696486,-269.124975,0.0001452,2]
[380952348,1755912696496,-400.0,0.0001452,2]
[380952349,1755912696505,-303.152926,0.0001452,2]
[380952350,1755912696515,-431.04,0.0001452,2]
[380952351,1755912696525,-453.525844,0.0001452,2]
[380952352,1755912696536,-400.0,0.0001452,2]
[380952353,1755912696546,-938.83,0.0001452,2]
[380952354,1755912696555,-400.0,0.0001452,2]
[380952355,1755912696565,-580.088906,0.0001452,2]
[380952356,1755912696575,-490.42,0.0001452,2]
[380952357,1755912696585,-400.0,0.0001452,2]
[380952358,1755912696594,-453.525844,0.0001452,2]
[380952359,1755912696605,-151.0,0.0001452,2]
[380952360,1755912696614,-664.71,0.0001452,2]
[380952361,1755912696624,-453.525844,0.0001452,2]
[380952362,1755912696634,-580.088906,0.0001452,2]
[380952363,1755912696644,-1070.54,0.0001452,2]
[380952364,1755912696654,-546.05,0.0001452,2]
[380952365,1755912696665,-151.0,0.0001452,2]
[380952366,1755912696675,-410.97,0.0001452,2]
[380952367,1755912696685,-570.73,0.0001452,2]
[380952368,1755912696695,-665.32,0.0001452,2]
[380952369,1755912696705,-580.088906,0.0001452,2]
[380952370,1755912696715,-196.827048,0.0001452,2]
[380952371,1755912696725,-151.0,0.0001452,2]
[380952372,1755912696735,-580.088906,0.0001452,2]
[380952373,1755912696745,-196.827048,0.0001452,2]
[380952374,1755912696755,-716.24,0.0001452,2]
[380952375,1755912696764,-400.0,0.0001452,2]
[380952376,1755912696774,-159.432272,0.0001452,2]
[380952377,1755912696784,-196.827048,0.0001452,2]
[380952378,1755912696794,-400.0,0.0001452,2]
[380952379,1755912696804,-697.95,0.0001452,2]
[380952380,1755912696814,-400.0,0.0001452,2]
[380952381,1755912696824,-731.6,0.0001452,2]
[380952382,1755912696834,-196.827048,0.0001452,2]
[380952383,1755912696844,-509.97,0.0001452,2]
[380952384,1755912696856,-1401.51,0.0001452,2]
[380952385,1755912696866,-400.0,0.0001452,2]
[380952386,1755912696876,-474.27,0.0001452,2]
[380952387,1755912696886,-1143.48,0.0001452,2]
[380952388,1755912696895,-151.0,0.0001452,2]
[380952389,1755912696905,-400.0,0.0001452,2]
[380952390,1755912696916,-633.21,0.0001452,2]
[380952391,1755912696926,-290.326529,0.0001452,2]
[380952392,1755912696936,-551.73,0.0001452,2]
[380952393,1755912696946,-1150.35,0.0001452,2]
[380952394,1755912696956,-400.0,0.0001452,2]
[380952395,1755912696966,-803.81,0.0001452,2]
[380952396,1755912696975,-151.0,0.0001452,2]
[380952397,1755912696985,-709.31,0.0001452,2]
[380952398,1755912696994,-400.0,0.0001452,2]
[380952399,1755912697004,-518.56,0.0001452,2]
[380952400,1755912697013,-743.59,0.0001452,2]
[380952401,1755912697023,-507.56,0.0001452,2]
[380952402,1755912697034,-1049.21,0.0001452,2]
[380952403,1755912697044,-599.05,0.0001452,2]
[380952404,1755912697055,-400.0,0.0001452,2]
[380952405,1755912697065,-870.96,0.0001452,2]
[380952406,1755912697074,-400.0,0.0001452,2]
[380952407,1755912697084,-878.26,0.0001452,2]
[380952408,1755912697094,-400.0,0.0001452,2]
[380952409,1755912697104,-640.94,0.0001452,2]
[380952410,1755912697114,-939.87,0.0001452,2]
[380952411,1755912697124,-671.68,0.0001452,2]
[380952412,1755912697134,-400.0,0.0001452,2]
[380952413,1755912697144,-784.45,0.0001452,2]
[380952414,1755912697154,-1743.04,0.0001452,2]
[380952415,1755912697164,-151.0,0.0001452,2]
[380952416,1755912697173,-983.76,0.0001452,2]
[380952417,1755912697183,-400.0,0.0001452,2]
[380952418,1755912697193,-538.86,0.0001452,2]
[380952419,1755912697203,-400.0,0.0001452,2]
[380952420,1755912697213,-400.0,0.0001452,2]
[380952421,1755912697224,-365.494742,0.0001452,2]
[380952422,1755912697234,-151.0,0.0001452,2]
[380952423,1755912697245,-400.0,0.0001452,2]
[380952424,1755912697256,-582.18,0.0001452,2]
[380952425,1755912697267,-365.494742,0.0001452,2]
[380952426,1755912697278,-1021.93,0.0001452,2]
[380952427,1755912697288,-400.0,0.0001452,2]
[380952428,1755912697298,-365.494742,0.0001452,2]
[380952429,1755912697308,-217.89694401,0.0001452,2]
[380952430,1755912697319,-839.71,0.0001452,2]
[380952431,1755912697328,-365.494742,0.0001452,2]
[380952432,1755912697338,-400.0,0.0001452,2]
[380952433,1755912697348,-706.05,0.0001452,2]
[380952434,1755912697358,-890.17,0.0001452,2]
[380952435,1755912697372,-1278.62,0.0001452,2]
[380952436,1755912697381,-527.2,0.0001452,2]
[380952437,1755912697391,-161.044393,0.0001452,2]
[380952438,1755912697401,-151.0,0.0001452,2]
[380952439,1755912697411,-171.77707,0.0001452,2]
[380952440,1755912697421,-649.66,0.0001452,2]
[380952441,1755912697431,-161.044393,0.0001452,2]
[380952442,1755912697441,-634.12,0.0001452,2]
[380952443,1755912697451,-400.0,0.0001452,2]
[380952444,1755912697461,-1099.97,0.0001452,2]
[380952445,1755912697471,-754.33,0.0001452,2]
[380952446,1755912697480,-161.044393,0.0001452,2]
[380952447,1755912697490,-726.51,0.0001452,2]
[380952448,1755912697500,-985.25,0.0001452,2]
[380952449,1755912697509,-784.4,0.0001452,2]
[380952450,1755912697519,-161.044393,0.0001452,2]
[380952451,1755912697530,-971.12,0.0001452,2]
[380952452,1755912697539,-1154.79,0.0001452,2]
[380952453,1755912697549,-691.37,0.0001452,2]
[380952454,1755912697559,-1203.18,0.0001452,2]
[380952455,1755912697569,-1157.08,0.0001452,2]
[380952456,1755912697579,-535.95,0.0001452,2]
[380952457,1755912697588,-400.0,0.0001452,2]
[380952458,1755912697597,-331.807127,0.0001452,2]
[380952459,1755912697607,-151.0,0.0001452,2]
[380952460,1755912697617,-888.95,0.0001452,2]
[380952461,1755912697627,-331.807127,0.0001452,2]
[380952462,1755912697638,-656.19,0.0001452,2]
[380952463,1755912697648,-400.0,0.0001452,2]
[380952464,1755912697658,-151.0,0.0001452,2]
[380952465,1755912697667,-807.2,0.0001452,2]
[380952466,1755912697677,-331.807127,0.0001452,2]
[380952467,1755912697688,-151.0,0.0001452,2]
[380952468,1755912697698,-1439.09,0.0001452,2]
[380952469,1755912697708,-151.0,0.0001452,2]
[380952470,1755912697718,-331.807127,0.0001452,2]
[380952471,1755912697728,-659.77,0.0001452,2]
[380952472,1755912697738,-400.0,0.0001452,2]
[380952473,1755912697748,-583.57,0.0001452,2]
[380952474,1755912697758,-890.52,0.0001452,2]
[380952475,1755912697768,-151.0,0.0001452,2]
[380952476,1755912697778,-731.16,0.0001452,2]
[380952477,1755912697787,-400.0,0.0001452,2]
[380952478,1755912697797,-160.378946,0.0001452,2]
[380952479,1755912697806,-400.0,0.0001452,2]
[380952480,1755912697816,-635.62,0.0001452,2]
[380952481,1755912697826,-407.93193656,0.0001452,2]
[380952482,1755912697835,-400.0,0.0001452,2]
[380952483,1755912697846,-766.72,0.0001452,2]
[380952484,1755912697856,-855.77,0.0001452,2]
[380952485,1755912697868,-986.02,0.0001452,2]
[380952486,1755912697878,-963.55,0.0001452,2]
[380952487,1755912697889,-967.68,0.0001452,2]
[380952488,1755912697899,-400.0,0.0001452,2]
[380952489,1755912697910,-482.07,0.0001452,2]
[380952490,1755912697920,-400.0,0.0001452,2]
[380952491,1755912697930,-735.365588,0.0001452,2]
[380952492,1755912697940,-400.0,0.0001452,2]
[380952493,1755912697950,-400.0,0.0001452,2]
[380952494,1755912697959,-466.03,0.0001452,2]
[380952495,1755912697969,-735.365588,0.0001452,2]
[380952496,1755912697979,-859.0,0.0001452,2]
[380952497,1755912697989,-151.0,0.0001452,2]
[380952498,1755912697999,-828.37,0.0001452,2]
[380952499,1755912698009,-507.72,0.0001452,2]
[380952500,1755912698018,-735.365588,0.0001452,2]
[380952501,1755912698028,-506.23,0.0001452,2]
[380952502,1755912698038,-1494.7,0.0001452,2]
[380952503,1755912698048,-735.365588,0.0001452,2]
[380952504,1755912698057,-777.58,0.0001452,2]
[380952505,1755912698067,-400.0,0.0001452,2]
[380952506,1755912698076,-400.0,0.0001452,2]
[380952507,1755912698086,-400.0,0.0001452,2]
[380952508,1755912698096,-781.12,0.0001452,2]
[380952509,1755912698106,-479.67,0.0001452,2]
[380952510,1755912698116,-585.32,0.0001452,2]
[380952511,1755912698125,-937.77,0.0001452,2]
[380952512,1755912698135,-755.98,0.0001452,2]
[380952513,1755912698145,-400.0,0.0001452,2]
[380952514,1755912698154,-344.56,0.0001452,2]
[380952515,1755912698164,-941.46,0.0001452,2]
[380952516,1755912698173,-1039.23,0.0001452,2]
[380952517,1755912698184,-650.0,0.0001452,2]
[380952518,1755912698194,-400.0,0.0001452,2]
[380952519,1755912698204,-498.14,0.0001452,2]
[380952520,1755912698214,-979.86,0.0001452,2]
[380952521,1755912698223,-400.0,0.0001452,2]
[380952522,1755912698233,-958.27,0.0001452,2]
[380952523,1755912698242,-545.13,0.0001452,2]
[380952524,1755912698252,-792.76,0.0001452,2]
[380952525,1755912698261,-873.74,0.0001452,2]
[380952526,1755912698271,-400.0,0.0001452,2]
[380952527,1755912698281,-903.77,0.0001452,2]
[380952528,1755912698290,-400.0,0.0001452,2]
[380952529,1755912698300,-505.4,0.0001452,2]
[380952530,1755912698613,-764.74,0.0001452,2]
[380952531,1755912698628,-400.0,0.0001452,2]
[380952532,1755912698639,-822.02,0.0001452,2]
[380952533,1755912698650,-2144.012255,0.0001452,2]
[380952534,1755912698662,-393.00803612,0.0001452,2]
[380952535,1755912698672,-400.0,0.0001452,2]
[380952536,1755912698681,-2144.012255,0.0001452,2]
[380952537,1755912698691,-400.0,0.0001452,2]
[380952538,1755912698700,-400.0,0.0001452,2]
[380952539,1755912698710,-2144.012255,0.0001452,2]
[380952540,1755912698719,-400.0,0.0001452,2]
[380952541,1755912698728,-400.0,0.0001452,2]
[380952542,1755912698739,-400.0,0.0001452,2]
[380952543,1755912698750,-493.69,0.0001452,2]
[380952544,1755912698760,-2144.012255,0.0001452,2]
[380952545,1755912698770,-550.01,0.0001452,2]
[380952546,1755912698780,-400.0,0.0001452,2]
[380952547,1755912698790,-400.0,0.0001452,2]
[380952548,1755912698802,-532.46,0.0001452,2]
[380952549,1755912698813,-400.0,0.0001452,2]
[380952550,1755912698823,-957.7,0.0001452,2]
[380952551,1755912698832,-400.0,0.0001452,2]
[380952552,1755912698841,-724.98,0.0001452,2]
[380952553,1755912698851,-712.18,0.0001452,2]
[380952554,1755912698861,-3061.19,0.0001452,2]
[380952555,1755912698870,-402.87,0.0001452,2]
[380952556,1755912698879,-484.95,0.0001452,2]
[380952557,1755912698888,-839.82,0.0001452,2]
[380952558,1755912698898,-1167.85,0.0001452,2]
[380952559,1755912698908,-400.0,0.0001452,2]
[380952560,1755912698918,-151.0,0.0001452,2]
[380952561,1755912698928,-186.366197,0.0001452,2]
[380952562,1755912698938,-911.43,0.0001452,2]
[380952563,1755912698948,-243.169796,0.0001452,2]
[380952564,1755912698957,-151.0,0.0001452,2]
[380952565,1755912698966,-400.0,0.0001452,2]
[380952566,1755912698976,-400.0,0.0001452,2]
[380952567,1755912698985,-668.01,0.0001452,2]
[380952568,1755912698995,-243.169796,0.0001452,2]
[380952569,1755912699004,-631.42,0.0001452,2]
[380952570,1755912699013,-440.73,0.0001452,2]
[380952571,1755912699023,-400.0,0.0001452,2]
[380952572,1755912699032,-613.21,0.0001452,2]
[380952573,1755912699042,-243.169796,0.0001452,2]
[380952574,1755912699051,-151.0,0.0001452,2]
[380952575,1755912699060,-400.0,0.0001452,2]
[380952576,1755912699070,-931.59,0.0001452,2]
[380952577,1755912699080,-243.169793,0.0001452,2]
[380952578,1755912699089,-151.0,0.0001452,2]
[380952579,1755912699099,-400.0,0.0001452,2]
[380952580,1755912699109,-151.0,0.0001452,2]
[380952581,1755912699118,-821.68,0.0001452,2]
[380952582,1755912699127,-298.500409,0.0001452,2]
[380952583,1755912699137,-585.39,0.0001452,2]
[380952584,1755912699146,-400.0,0.0001452,2]
[380952585,1755912699156,-271.346166,0.0001452,2]
[380952586,1755912699165,-980.7,0.0001452,2]
[380952587,1755912699174,-298.500409,0.0001452,2]
[380952588,1755912699185,-464.46,0.0001452,2]
[380952589,1755912699195,-400.0,0.0001452,2]
[380952590,1755912699204,-408.02,0.0001452,2]
[380952591,1755912699213,-840.52,0.0001452,2]
[380952592,1755912699223,-400.0,0.0001452,2]
[380952593,1755912699232,-627.98,0.0001452,2]
[380952594,1755912699242,-468.81,0.0001452,2]
[380952595,1755912699251,-151.0,0.0001452,2]
[380952596,1755912699261,-298.500409,0.0001452,2]
[380952597,1755912699271,-400.0,0.0001452,2]
[380952598,1755912699282,-151.0,0.0001452,2]
[380952599,1755912699292,-400.0,0.0001452,2]
[380952600,1755912699301,-166.316788,0.0001452,2]
[380952601,1755912699310,-151.0,0.0001452,2]
[380952602,1755912699320,-298.500418,0.0001452,2]
[380952603,1755912699329,-320.72974999,0.00014521,2]
[380952604,1755912699339,-500.0,0.00014521,2]
[380952605,1755912699348,-276.11933998,0.00014521,2]
[380952606,1755912699357,-166.12,0.00014528,2]
[380952607,1755912699369,-214.0,0.0001453,2]
[380952608,1755912699378,-500.0,0.00014534,2]
[380952609,1755912699389,-500.0,0.00014535,2]
[380952610,1755912699399,-500.0,0.00014535,2]
[380952611,1755912699408,-500.0,0.00014535,2]
[380952612,1755912699417,-498.00577437,0.00014535,2]
[380952613,1755912699427,-500.0,0.00014535,2]
[380952614,1755912699436,-500.0,0.00014535,2]
[380952615,1755912699446,-500.0,0.00014535,2]
[380952616,1755912699458,-500.0,0.00014535,2]
[380952617,1755912699467,-591.41849577,0.00014535,2]
[380952618,1755912699477,-575.582235,0.0001454,2]
[380952619,1755912699486,-823.0,0.00014595,2]
[380952620,1755912699496,-188.0,0.00014626,2]
[380952621,1755912699505,-3292.0,0.00014639,2]
[380952622,1755912699514,-1944.44445,0.0001466,2]
[380952623,1755912699524,-166.66,0.00014668,2]
[380952624,1755912699533,-11228.44,0.000147,2]
[380952625,1755912699543,-844.18806451,0.00014727,2]
[380952626,1755912699552,-458.56382065,0.00014728,2]
[380952627,1755912699562,-160.0,0.00014728,2]
[380952628,1755912699571,-212.08495325,0.00014728,2]
[380952629,1755912699581,-6158.92295195,0.0001476,2]
[380952630,1755912699590,-500.0,0.00014773,2]
[380952631,1755912699599,-425.45,0.00014794,2]
[380952632,1755912699609,-425.89,0.00014794,2]
[380952633,1755912699618,-305.87,0.00014794,2]
[380952634,1755912699628,-425.88,0.00014794,2]
[380952635,1755912699637,-404.24,0.00014794,2]
[380952636,1755912699647,-400.0,0.00014794,2]
[380952637,1755912699657,-400.0,0.00014794,2]
[380952638,1755912699666,-957.1,0.00014794,2]
[380952639,1755912699677,-400.0,0.00014794,2]
[380952640,1755912699688,-400.0,0.00014794,2]
[380952641,1755912699698,-500.5,0.00014794,2]
[380952642,1755912699707,-400.0,0.00014794,2]
[380952643,1755912699717,-630.13,0.00014794,2]
[380952644,1755912699727,-484.29,0.00014794,2]
[380952645,1755912699737,-691.2,0.00014794,2]
[380952646,1755912699746,-400.0,0.00014794,2]
[380952647,1755912699755,-564.0,0.00014794,2]
[380952648,1755912699765,-922.66,0.00014794,2]
[380952649,1755912699775,-1309.75,0.00014794,2]
[380952650,1755912699785,-407.62988718,0.00014794,2]
[380952651,1755912699794,-400.0,0.00014794,2]
[380952652,1755912699804,-400.0,0.00014794,2]
[380952653,1755912699813,-410.64,0.00014794,2]
[380952654,1755912699822,-400.0,0.00014794,2]
[380952655,1755912699832,-400.0,0.00014794,2]
[380952656,1755912699841,-400.0,0.00014794,2]
[380952657,1755912699850,-400.0,0.00014794,2]
[380952658,1755912699859,-211.19800171,0.00014794,2]
[380952659,1755912699869,-400.0,0.00014794,2]
[380952660,1755912699878,-400.0,0.00014794,2]
[380952661,1755912699888,-400.0,0.00014794,2]
[380952662,1755912699897,-400.0,0.00014794,2]
[380952663,1755912699907,-400.0,0.00014794,2]
[380952664,1755912699916,-400.0,0.00014794,2]
[380952665,1755912699926,-400.0,0.00014794,2]
[380952666,1755912699936,-814.35,0.00014794,2]
[380952667,1755912699946,-703.72,0.00014794,2]
[380952668,1755912699956,-400.0,0.00014794,2]
[380952669,1755912699965,-400.0,0.00014794,2]
[380952670,1755912699975,-400.0,0.00014794,2]
[380952671,1755912699985,-400.0,0.00014794,2]
[380952672,1755912699994,-400.0,0.00014794,2]
[380952673,1755912700004,-416.84,0.00014794,2]
[380952674,1755912700013,-552.81,0.00014794,2]
[380952675,1755912700023,-565.22,0.00014794,2]
[380952676,1755912700033,-400.0,0.00014794,2]
[380952677,1755912700042,-400.0,0.00014794,2]
[380952678,1755912700051,-457.37,0.00014794,2]
[380952679,1755912700060,-400.0,0.00014794,2]
[380952680,1755912700069,-400.0,0.00014794,2]
[380952681,1755912700077,-400.0,0.00014794,2]
[380952682,1755912700086,-220.22888149,0.00014794,2]
[380952683,1755912700095,-400.0,0.00014794,2]
[380952684,1755912700104,-454.18,0.00014794,2]
[380952685,1755912700114,-400.0,0.00014794,2]
[380952686,1755912700123,-408.41,0.00014794,2]
[380952687,1755912700132,-400.0,0.00014794,2]
[380952688,1755912700142,-429.23,0.00014794,2]
[380952689,1755912700152,-400.0,0.00014794,2]
[380952690,1755912700162,-400.0,0.00014794,2]
[380952691,1755912700171,-400.0,0.00014794,2]
[380952692,1755912700181,-400.0,0.00014794,2]
[380952693,1755912700191,-400.0,0.00014794,2]
[380952694,1755912700201,-582.37,0.00014794,2]
[380952695,1755912700211,-400.0,0.00014794,2]
[380952696,1755912700220,-400.0,0.00014794,2]
[380952697,1755912700229,-400.0,0.00014794,2]
[380952698,1755912700239,-400.0,0.00014794,2]
[380952699,1755912700249,-400.0,0.00014794,2]
[380952700,1755912700258,-759.88,0.00014794,2]
[380952701,1755912700268,-591.39,0.00014794,2]
[380952702,1755912700277,-413.97,0.00014794,2]
[380952703,1755912700287,-649.74,0.00014794,2]
[380952704,1755912700297,-446.38,0.00014794,2]
[380952705,1755912700307,-506.47,0.00014794,2]
[380952706,1755912700316,-715.02,0.00014794,2]
[380952707,1755912700325,-400.0,0.00014794,2]
[380952708,1755912700334,-537.25,0.00014794,2]
[380952709,1755912700344,-400.0,0.00014794,2]
[380952710,1755912700353,-400.0,0.00014794,2]
[380952711,1755912700363,-168.966498,0.00014794,2]
[380952712,1755912700375,-512.45,0.00014794,2]
[380952713,1755912700384,-400.0,0.00014794,2]
[380952714,1755912700394,-527.41,0.00014794,2]
[380952715,1755912700404,-168.966498,0.00014794,2]
[380952716,1755912700414,-168.966498,0.00014794,2]
[380952717,1755912700423,-521.1,0.00014794,2]
[380952718,1755912700433,-168.96649,0.00014794,2]
[380952719,1755912700443,-400.0,0.00014794,2]
[380952720,1755912700454,-446.92,0.00014794,2]
[380952721,1755912700464,-449.44,0.00014794,2]
[380952722,1755912700473,-400.0,0.00014794,2]
[380952723,1755912700483,-675.1,0.00014794,2]
[380952724,1755912700492,-151.0,0.00014794,2]
[380952725,1755912700502,-400.0,0.00014794,2]
[380952726,1755912700511,-400.0,0.00014794,2]
[380952727,1755912700521,-400.0,0.00014794,2]
[380952728,1755912700530,-609.3,0.00014794,2]
[380952729,1755912700540,-422.54987065,0.00014794,2]
[380952730,1755912700549,-654.03,0.00014794,2]
[380952731,1755912700559,-400.0,0.00014794,2]
[380952732,1755912700568,-400.0,0.00014794,2]
[380952733,1755912700577,-178.47049664,0.00014794,2]
[380952734,1755912700586,-661.96,0.00014794,2]
[380952735,1755912700596,-310.58946015,0.00014794,2]
[380952736,1755912700605,-568.98,0.00014794,2]
[380952737,1755912700614,-400.0,0.00014794,2]
[380952738,1755912700623,-400.0,0.00014794,2]
[380952739,1755912700632,-400.0,0.00014794,2]
[380952740,1755912700642,-400.0,0.00014794,2]
[380952741,1755912700651,-400.0,0.00014794,2]
[380952742,1755912700660,-400.0,0.00014794,2]
[380952743,1755912700669,-709.86,0.00014794,2]
[380952744,1755912700678,-400.0,0.00014794,2]
[380952745,1755912700688,-812.84,0.00014794,2]
[380952746,1755912700698,-437.4,0.00014794,2]
[380952747,1755912700707,-586.38,0.00014794,2]
[380952748,1755912700716,-171.627544,0.00014794,2]
[380952749,1755912700726,-442.27,0.00014794,2]
[380952750,1755912700735,-400.0,0.00014794,2]
[380952751,1755912700744,-562.61,0.00014794,2]
[380952752,1755912700754,-400.0,0.00014794,2]
[380952753,1755912700763,-400.0,0.00014794,2]
[380952754,1755912700772,-400.0,0.00014794,2]
[380952755,1755912700782,-845.65,0.00014794,2]
[380952756,1755912700791,-441.24,0.00014794,2]
[380952757,1755912700801,-529.98,0.00014794,2]
[380952758,1755912700810,-400.0,0.00014794,2]
[380952759,1755912700819,-400.0,0.00014794,2]
[380952760,1755912700828,-400.0,0.00014794,2]
[380952761,1755912700838,-570.39,0.00014794,2]
[380952762,1755912700848,-421.77,0.00014794,2]
[380952763,1755912700857,-400.0,0.00014794,2]
[380952764,1755912700867,-400.0,0.00014794,2]
[380952765,1755912700969,-400.0,0.00014794,2]
[380952766,1755912700979,-400.0,0.00014794,2]